Cogmind - Beta 10.2 @@@ ROGUE MODE // 2021.03.19 @ 15:48:16 Player: sentrybuster Result: Self-destructed Performance ------------- Evolutions (1) 500 Regions Visited (2) 400 Robots Destroyed (8) 40 Value Destroyed (195) 195 Prototype IDs (0) 0 Alien Tech Used (0) 0 Bonus (0) 0 TOTAL SCORE: 1135 Bonus ------- None Cogmind --------- Core Integrity 333/400 Matter 300/300 Energy 125/125 System Corruption 0% Temperature Cool (0) Movement Treading (160) Location -9/Materials Parts ------- > --- POWER (2) -------- Light Ion Engine > --- PROPULSION (2) --- Light Treads Light Treads > --- UTILITY (3) ------ Large Storage Unit Light Armor Plating Light Armor Plating > --- WEAPON (2) ------- (None) > --- INVENTORY (10) --- Light Treads Aluminum Leg Aluminum Leg Wheel Compact Wheel Datajack Peak State ------------ > --- POWER ------------ Ion Engine Light Ion Engine > --- PROPULSION ------- Light Treads Light Treads > --- UTILITY ---------- Large Storage Unit Light Armor Plating Light Armor Plating > --- WEAPON ----------- (None) > --- INVENTORY -------- Light Treads Aluminum Leg Aluminum Leg Wheel Compact Wheel Datajack [Rating: 7] Favorites ----------- Power Ion Engine Engine Ion Engine Propulsion Light Treads Treads Light Treads Utility Small Storage Unit Storage Small Storage Unit Protection Light Armor Plating Weapon EM Pulse Gun Energy Gun EM Pulse Gun Build | -11 -10 -9 ------- Run | Scr Mat Mat Slots Evolved 2 | . . 2 Power 1 | . . 1 Propulsion . | . . . Utility 1 | . . 1 Weapon . | . . . Parts Attached 9 | 5 . 4 Power 2 | 1 . 1 Engine 2 | 1 . 1 Core . | . . . Reactor . | . . . Propulsion 2 | 2 . . Treads 2 | 2 . . Leg . | . . . Wheel . | . . . Hover . | . . . Flight . | . . . Utility 4 | 1 . 3 Device . | . . . Storage 2 | 1 . 1 Processor . | . . . Hackware . | . . . Protection 2 | . . 2 Artifact . | . . . Weapon 1 | 1 . . Energy Gun 1 | 1 . . Energy Cannon . | . . . Ballistic Gun . | . . . Ballistic Cannon . | . . . Launcher . | . . . Special Weapon . | . . . Impact Weapon . | . . . Slashing Weapon . | . . . Piercing Weapon . | . . . Special Melee Weapon . | . . . Unidentified Prototypes . | . . . Parts Lost 2 | . 1 1 Power 1 | . . 1 Propulsion . | . . . Utility . | . . . Weapon 1 | . 1 . Highest Loss Streak 1 | . 1 1 Average Slot Usage (%) 61 | . 60 64 Engine 15 | . 14 20 Treads 26 | . 28 22 Storage 13 | . 14 11 Protection 3 | . . 11 Energy Gun 2 | . 3 . Naked Turns . | . . . Heaviest Build 30 | 11 11 30 Greatest Support 40 | 40 40 40 Greatest Overweight (x) . | . . . Average Overweight (x) . | . . . Largest Inventory Capacity 12 | 6 6 12 Average Capacity 6 | 5 6 9 Most Carried 6 | 5 6 6 Average Carried 5 | 2 5 5 Final Capacity 10 | 6 6 10 Final Carried 6 | 5 6 6 Class Distribution -------------------- 100% | Mutant Dominant Class ---------------- Mutant | -10/Materials Mutant | -9/Materials Resources | -11 -10 -9 ----------- Run | Scr Mat Mat Matter Collected 270 | 248 2 20 Remotely . | . . . Salvage Created 237 | . 157 80 Parts 17 | . 12 5 Haulers Intercepted . | . . . Recyclers Shooed . | . . . Parts Field Recycled . | . . . Retrieved Matter . | . . . Parts Self-Destructed . | . . . Prevented . | . . . Kills | -11 -10 -9 ------- Run | Scr Mat Mat Combat Hostiles Destroyed 7 | . 5 2 Melee 3 | . 1 2 Guns 4 | . 4 . Classes Destroyed 3 | . 3 . Operator 1 | . 1 . Swarmer 3 | . 3 . Grunt 4 | . 2 2 Best Kill Streak 5 | . 5 1 Combat Bots Only 5 | . 5 1 Max Kills in Single Turn 1 | . 1 1 Gunslinging . | . . . Exploded . | . . . Melee 1 | . 1 1 Uniques/NPCs Destroyed . | . . . Combat | -11 -10 -9 -------- Run | Scr Mat Mat Damage Taken 521 | . 241 280 Core 102 | . 35 67 Absorbed by Shields . | . . . Core Remaining (%) 93 | 100 86 . Volleys Fired 18 | . 18 . Largest 1 | . 1 . Hottest 40 | . 40 . Shots Fired 18 | . 18 . Gun 18 | . 18 . Cannon . | . . . Launcher . | . . . Special . | . . . Kinetic . | . . . Thermal . | . . . Explosive . | . . . Electromagnetic 18 | . 18 . Robot Hit Streak 6 | . 6 . Robot Miss Streak 2 | . 2 . Penetration Max . | . . . Secondary Targets . | . . . Shots Hit Robots 12 | . 12 . Core Hits 16 | . 7 9 Critical Hits . | . . . Critical Kills . | . . . Critical Parts Destroyed . | . . . Melee Attacks . | . . . Impact . | . . . Slashing . | . . . Piercing . | . . . Sneak Attacks . | . . . Combat Hostiles . | . . . Follow-up Attacks . | . . . Damage Inflicted 215 | . 175 40 Guns 167 | . 167 . Cannons . | . . . Explosions . | . . . Melee . | . . . Ramming 48 | . 8 40 Kinetic . | . . . Thermal . | . . . Explosive . | . . . Electromagnetic 167 | . 167 . Impact . | . . . Slashing . | . . . Piercing . | . . . Highest Corruption . | . . . Average Corruption . | . . . Corruption Purged . | . . . Overload Shots . | . . . Overflow Damage . | . . . Projectiles . | . . . Explosions . | . . . Melee . | . . . Knockbacks . | . . . Impact . | . . . Kinetic . | . . . Secondary . | . . . Self-Inflicted Damage . | . . . Shots . | . . . Rammed 24 | . 4 20 Targets Rammed 27 | . 5 22 Kicked . | . . . Crushed 3 | . 1 2 Highest Temperature 54 | . 54 . Average Temperature 31 | . 31 . Received Heat Transfer 150 | . 54 96 Siege Activations . | . . . Robots Corrupted . | . . . Combat Hostiles . | . . . Parts Fried . | . . . Impact Corruptions . | . . . Robots Melted . | . . . Combat Hostiles . | . . . Parts Melted . | . . . Heat Transferred . | . . . Parts Sabotaged . | . . . Parts Stolen . | . . . Parts Stripped . | . . . Power Chain Reactions . | . . . Missiles Intercepted . | . . . Alert | -11 -10 -9 ------- Run | Scr Mat Mat Peak Influence 190 | . 190 83 Initial . | . . . Average 73 | . 109 30 Maximum Alert Level . | . . . Low Security (%) 100 | 100 100 100 Level 1 . | . . . Level 2 . | . . . Level 3 . | . . . Level 4 . | . . . Level 5 . | . . . High Security . | . . . Max Security . | . . . Squads Dispatched 3 | . 1 2 Investigation . | . . . Extermination . | . . . Reinforcement 3 | . 1 2 Assault . | . . . Garrison . | . . . Intercept . | . . . Construction Impeded . | . . . Haulers Reinforced . | . . . Stealth | -11 -10 -9 --------- Run | Scr Mat Mat Distress Signals 2 | . . 2 Communications Jammed . | . . . Distress Signals . | . . . Times Spotted 17 | . 9 8 Peak Tracking Total 9 | . 5 9 Tactical Retreats . | . . . Traps | -11 -10 -9 ------- Run | Scr Mat Mat Traps Triggered . | . . . Indirectly . | . . . Trap Hack Attempts . | . . . Triggered . | . . . Disarmed . | . . . Reprogrammed . | . . . Reused . | . . . Traps Extracted . | . . . Installed . | . . . Triggered . | . . . Machines | -11 -10 -9 ---------- Run | Scr Mat Mat Machines Disabled . | . . . Max in Single Turn . | . . . Machines Sabotaged . | . . . Garrisons Compromised . | . . . Overloaded Fab Kills . | . . . Fab Network Shutdowns . | . . . Hacking | -11 -10 -9 --------- Run | Scr Mat Mat Machines Accessed 6 | . 5 1 Terminals 6 | . 5 1 Fabricators . | . . . Repair Stations . | . . . Recycling Units . | . . . Scanalyzers . | . . . Garrison Access . | . . . Total Hacks 20 | . 16 4 Successful 10 | . 7 3 Failed 10 | . 9 1 Catastrophic . | . . . Database Lockouts . | . . . Manual 15 | . 12 3 Terminals 20 | . 16 4 Fabricators . | . . . Repair Stations . | . . . Recycling Units . | . . . Scanalyzers . | . . . Garrison Access . | . . . Terminal Hacks 6 | . 4 2 Branch Access Points 1 | . 1 . Patrol Status 1 | . 1 . Registered Components 1 | . . 1 Zone Layout 3 | . 2 1 Fabricator Hacks . | . . . Repair Station Hacks . | . . . Recycling Unit Hacks . | . . . Scanalyzer . | . . . Garrison Access Hacks . | . . . Unauthorized Hacks 4 | . 3 1 Terminals 4 | . 3 1 Track 3 | . 2 1 Operators 1 | . 1 . Fabricators . | . . . Repair Stations . | . . . Recycling Units . | . . . Scanalyzers . | . . . Garrison Access . | . . . Data Cores Recovered . | . . . Used . | . . . Hacking Detections 4 | . 3 1 Full Trace Events 1 | . 1 . Feedback Events . | . . . Feedback Blocked . | . . . Robot Schematics Acquired . | . . . Robots Built . | . . . Matter . | . . . Time . | . . . Total Robot Build Rating . | . . . Part Schematics Acquired . | . . . Parts Built . | . . . Matter . | . . . Time . | . . . Total Part Build Rating . | . . . Parts Repaired . | . . . Time . | . . . Parts Recycled . | . . . Recycled Matter . | . . . Retrieved Matter . | . . . Retrieved Components . | . . . Parts Scanalyzed . | . . . Part Schematics Acquired . | . . . Parts Damaged . | . . . Bothacking | -11 -10 -9 ------------ Run | Scr Mat Mat Used RIF Installer . | . . . Robots Hacked . | . . . Non-combat . | . . . Combat . | . . . Robot Hacks Applied . | . . . Relay Couplers Released . | . . . Robots Rewired . | . . . Allies Hacked . | . . . Hacks Repelled . | . . . Allies | -11 -10 -9 -------- Run | Scr Mat Mat Total Allies . | . . . Largest Group . | . . . Highest-Rated Group . | . . . Highest-Rated Ally . | . . . Total Orders . | . . . Ally Attacks . | . . . Total Damage . | . . . Kills . | . . . Allies Corrupted . | . . . Allies Melted . | . . . Intel | -11 -10 -9 ------- Run | Scr Mat Mat Robot Analysis Total . | . . . Derelict Logs Recovered . | . . . Drone Launches . | . . . Drone Recoveries . | . . . Exploration | -11 -10 -9 ------------- Run | Scr Mat Mat Turns Passed 788 | 97 468 223 Spaces Moved 377 | 56 209 112 Core 4 | 4 . . Treads 373 | 52 209 112 Legs . | . . . Wheels . | . . . Hover . | . . . Flight . | . . . Fastest Speed 50 | 50 160 160 Average Speed 158 | 152 160 160 Slowest Speed 160 | 160 160 160 Overloaded Moves . | . . . Propulsion Burnouts . | . . . Robots Hopped . | . . . Cave-ins Triggered . | . . . Exploration Rate (%) 19 | 4 41 12 Regions Visited 2 Branch Regions . Pre-discovered Areas . | . . . Known Exits Taken . | . . . Unknown Exits Taken 2 | 1 1 . Scrap Searched . | . . . Spaces Dug . | . . . Terrain Destroyed . | . . . Melee . | . . . Projectile . | . . . AOE . | . . . Terrain Rammed . | . . . Walls Destroyed . | . . . Machines Disabled . | . . . Actions | -11 -10 -9 --------- Run | Scr Mat Mat Total 530 | 66 322 142 Wait 91 | . 90 1 Move 375 | 55 208 112 Hop . | . . . Pick Up 8 | 6 1 1 Fast Attach 7 | 4 . 3 Attach 2 | 1 . 1 Detach 1 | . . 1 Swap . | . . . Drop 1 | . . 1 Fire 18 | . 18 . Melee . | . . . Ram . | . . . Kick . | . . . Crush 27 | . 5 22 Escape Stasis . | . . . Rewire . | . . . Trap . | . . . Miscellaneous . | . . . Route ------- -11/Scrapyard -10/Materials (discovered 3 exits: *Mat / *Min x2) -9/Materials History --------- Turn | Location | Event 17 | -11/Scrapyard | Discovered new exit (range 15) 98 | -11/Scrapyard | Entered Materials 257 | -10/Materials | Discovered new exit (range 5) 280 | -10/Materials | Identified exit to Mines 308 | -10/Materials | Build established: Mutant 481 | -10/Materials | Discovered new exit (range 19) 566 | -10/Materials | Entered another Materials area 566 | -9/Materials | Evolved 2 slots: Power x1, Utility x1 789 | -9/Materials | Self-destructed Last Messages --------------- Tracking enabled and active. 00657_ Crushed G-34 Mercenary. 00657_ G-34 Mercenary destroyed. 00658_ Acquired 20 matter. 00671_ Acquired Lgt. Armor Plating. 00705_ W-16 Scout sends out distress signal. 00711_ ALERT: Hostiles spotted, dispatching reinforcements to Terminal M004. 00730_ Slammed into G-47 Trooper. 00742_ Ion Engine destroyed. 00743_ Slammed into G-47 Trooper. 00747_ R-06 Scavenger collects Aluminum Leg. 00748_ Slammed into G-47 Trooper. 00749_ Crushed G-47 Trooper. 00749_ G-47 Trooper destroyed. 00751_ Slammed into W-16 Scout. 00770_ W-16 Scout sends out distress signal. 00775_ ALERT: Hostiles spotted, dispatching reinforcements to Terminal M001. 00778_ Slammed into S-10 Pest. Map ----- +----------------------------------------------------+ | ????????????????????????????????????????# ###### | | ????????????????????????????????????????# # | | ????????????????????????????????????????# # | | ????????????????????????????????????????# # | | ????????????????????????????????????????# # ! | | ????????????????????????????????????????# + ! | | ????????????????????????????????????????# # | | ????????????????????????????????????????### # | | ??????????????????????????????????????????# # | | ????????????????????????????########??????# ###+## | | ???????????????????????????? ######?# #?# #? | | ????????????????????????????"" # #?# #?# #? | | ????????????????????????????"" # ### ### #? | | ????????????????????????????"" # # # #? | | ???????????????!???????????? "# # # #? | | ???????????????????????????? kT# + T # #? | | ???????????????????????????? "# # # #? | | ????????????????????#??????? # # # #? | | ????????????????????# ??????######## ## % #? | | ??????????????###+### ??############ ## ## | | ??????????##### ?# ######## | | ?????????? ?# +%[=%r | | ????????? # #%%%= | | ?????????? t #% r #%%%* ###+###### | | ?????????????? """ ls""" """ + % + # | | ?????????????? """ #@""" """ ####### # | | ???????????????""" #s""" """ #?????# ]# | | ????????????? ?#%s% #?????# # | | ???????????? ?###########?????# # | | ??????????? """ ??????????????????# # | | ????!?????? ?""" ##??????????????????# # | | ???????????????""" ????????????????????# # | | ??????????????? ?????????????????????# # | | ??????????????? ??????????????????????########## | | ???????????????""????????????????????????????????? | | ???????????????""????????????????????????????????? | | ?????????????????????????????????????????????????? | | ?????????????????????????????????????????????????? | | ?????????????????????????????????????????????????? | | ?????????????????????????????????????????????????? | | ?????????????????????????????????????????????????? | | ?????????????????????????????????????????????????? | | ?????????????????????????????????????????????????? | | ?????????????????????????????????????????????????? | | ?????????????????????????????????????????????????? | | ?????????????????????????????????????????????????? | | ?????????????????????????????????????????????????? | | ?????????????????????????????????????????????????? | | ?????????????????????????????????????????????????? | | ?????????????????????????????????????????????????? | +----------------------------------------------------+ Best States ------------- Heat Dissipation 28 Energy Generation 15 Energy Capacity 275 Matter Stores 300 Matter Capacity 300 Sight Range 16 Terrain Scan Density 10 Armor Coverage 300 Evasion (%) 40 Recoil Reduction 2 Item Schematics ----------------- None Robot Schematics ------------------ None Fabricated ------------ Nothing Alien Tech Used ----------------- None Achievements -------------- None Challenges ------------ None Game ------ Seed SwarmWaveClaws Manual? 0 Play Time 00:07:28 Cumulative 147.8 hours Start 2021.03.19 @ 15:41:49 End 2021.03.19 @ 15:48:16 Sessions 1 Manual Loads 0 Difficulty Rogue Special Mode None Game No. 252 Rogue 248 Adventurer 0 Explorer 4 Win Type - Total 0 Types 0/0/0/0/0/0/0/0/0 Lore% 65 Gallery% 75 Achievement% 50 Wizard Run 0 Options --------- ASCII 1 Keyboard 1 Movement Numpad Keybinds 0 Fullscreen 1 Font 18/X11Bold Map View 76x50 Tactical HUD 1 Map Filters NONE Filters NONE Steam 1 RUN: 3b549372-6bc9-445c-bf97-f18f098a3096